Cogmind - Beta 11 @@@ ROGUE MODE // 2022.03.27 @ 17:52:04 Player: Red Box Result: Self-destructed Performance ------------- Evolutions (1) 500 Regions Visited (3) 600 Robots Destroyed (40) 200 Value Destroyed (648) 648 Prototype IDs (4) 80 Alien Tech Used (0) 0 Bonus (0) 0 TOTAL SCORE: 2028 Bonus ------- None Cogmind --------- Core Integrity 337/400 Matter 300/300 Energy 265/265 System Corruption 10% Temperature Cool (0) Movement Rolling (145) Ox3 Location -9/Materials Parts ------- > --- POWER (1) -------- Improved Ion Engine > --- PROPULSION (3) --- Compact Wheel > --- UTILITY (3) ------ High-capacity Storage Unit Medium Armor Plating > --- WEAPON (2) ------- Shotgun Mace > --- INVENTORY (20) --- Compact Wheel Hover Unit Improved Hover Unit Improved Hover Unit Improved Hover Unit Improved Hover Unit Large Storage Unit Large Matter Pod (10) Propulsion Shielding Utility Shielding Weapon Shielding EM Pulse Gun EM Pulse Gun Improved Medium Laser Light EM Pulse Cannon Heavy Assault Rifle Improved Light Cannon Improved Light Cannon Mini Grenade Launcher Peak State ------------ > --- POWER ------------ Improved Ion Engine > --- PROPULSION ------- Compact Wheel Compact Wheel Compact Wheel > --- UTILITY ---------- Heat Sink High-capacity Storage Unit Medium Armor Plating > --- WEAPON ----------- Improved Medium Laser Shotgun > --- INVENTORY -------- Compact Wheel Hover Unit Improved Hover Unit Improved Hover Unit Improved Hover Unit Improved Hover Unit Large Storage Unit Large Matter Pod Propulsion Shielding Utility Shielding Weapon Shielding EM Pulse Gun EM Pulse Gun Light EM Pulse Cannon Assault Rifle Assault Rifle Heavy Assault Rifle Mini Grenade Launcher Mini Grenade Launcher Mining Laser [Rating: 16] Favorites ----------- Power Ion Engine Engine Ion Engine Propulsion Compact Wheel Leg Aluminum Leg Wheel Compact Wheel Utility High-capacity Storage Unit Device Heat Sink Storage High-capacity Storage Unit Protection Medium Armor Plating Weapon Medium Laser Energy Gun Medium Laser Energy Cannon Beam Cannon Ballistic Gun Assault Rifle Launcher Mini Grenade Launcher Special Weapon Mining Laser Impact Weapon Mace Build | -11 -10 -10 -9 ------- Run | Scr Mat Min Mat Slots Evolved 2 | . . . 2 Power . | . . . . Propulsion 1 | . . . 1 Utility 1 | . . . 1 Weapon . | . . . . Parts Attached 38 | 9 16 3 10 Power 3 | 1 1 . 1 Engine 3 | 1 1 . 1 Core . | . . . . Reactor . | . . . . Propulsion 9 | 4 4 . 1 Treads . | . . . . Leg 2 | 2 . . . Wheel 7 | 2 4 . 1 Hover . | . . . . Flight . | . . . . Utility 11 | 2 5 . 4 Device 5 | 1 3 . 1 Storage 3 | 1 2 . . Processor . | . . . . Hackware . | . . . . Protection 3 | . . . 3 Artifact . | . . . . Weapon 15 | 2 6 3 4 Energy Gun 5 | 2 2 . 1 Energy Cannon 3 | . 2 1 . Ballistic Gun 3 | . . 1 2 Ballistic Cannon . | . . . . Launcher 1 | . . 1 . Special Weapon 2 | . 2 . . Impact Weapon 1 | . . . 1 Slashing Weapon . | . . . . Piercing Weapon . | . . . . Special Melee Weapon . | . . . . Unidentified Prototypes . | . . . . Parts Lost 9 | . 2 3 4 Power 1 | . . 1 . Propulsion 3 | . 1 . 2 Utility 3 | . 1 1 1 Weapon 2 | . . 1 1 Highest Loss Streak 3 | . 1 3 3 To Critical Strikes . | . . . . Average Slot Usage (%) 95 | . 96 94 94 Engine 12 | . 14 11 9 Wheel 28 | . 27 28 32 Device 10 | . 10 11 6 Storage 13 | . 14 14 11 Protection 2 | . . . 12 Energy Gun 14 | . 18 11 3 Energy Cannon 7 | . 7 13 1 Ballistic Gun 3 | . . 2 15 Special Weapon 1 | . 2 . . Naked Turns . | . . . . Heaviest Build 61 | 14 51 51 61 Greatest Support 48 | 20 32 32 48 Greatest Overweight (x) 2 | 2 2 1 1 Average Overweight (x) . | . . 1 . Largest Inventory Capacity 20 | 8 20 20 20 Average Capacity 17 | 7 17 20 20 Most Carried 20 | 8 20 20 20 Average Carried 16 | 6 15 19 19 Final Capacity 20 | 8 20 20 20 Final Carried 20 | 7 20 19 19 Class Distribution -------------------- 100% | Mutant Dominant Class ---------------- Mutant | -10/Materials Mutant | -10/Mines Mutant | -9/Materials Resources | -11 -10 -10 -9 ----------- Run | Scr Mat Min Mat Matter Collected 700 | 290 160 24 226 Remotely . | . . . . Salvage Created 1088 | 133 412 232 311 Parts 85 | 13 36 14 22 Haulers Intercepted 3 | . 2 . 1 Recyclers Shooed 2 | 1 . . 1 Parts Field Recycled . | . . . . Retrieved Matter . | . . . . Parts Self-Destructed . | . . . . Prevented . | . . . . Kills | -11 -10 -10 -9 ------- Run | Scr Mat Min Mat Combat Hostiles Destroyed 34 | . 13 16 5 Melee 1 | . . . 1 Guns 19 | . 11 4 4 Cannons 14 | . 2 12 . Classes Destroyed 8 | 2 4 1 1 Tunneler 4 | 4 . . . Hauler 3 | . 2 . 1 Recycler 1 | 1 . . . Watcher 5 | . 3 . 2 Swarmer 18 | . 9 9 . Grunt 7 | . 4 . 3 Sentry 2 | . . . 2 Assembled 7 | . . 7 . Best Kill Streak 5 | 3 5 3 3 Combat Bots Only 4 | . 4 3 2 Max Kills in Single Turn 1 | 1 1 1 1 Gunslinging . | . . . . Exploded . | . . . . Melee 1 | . . . 1 Uniques/NPCs Destroyed . | . . . . Combat | -11 -10 -10 -9 -------- Run | Scr Mat Min Mat Damage Taken 1246 | . 299 396 551 Core 274 | . 71 140 63 Absorbed by Shields . | . . . . Regen/Repaired (Parts) 22 | . 22 . . Core Remaining (%) 57 | 100 . 15 . Volleys Fired 132 | 10 51 45 26 Largest 2 | 2 2 2 2 Hottest 150 | 90 150 110 80 Shots Fired 253 | 20 92 89 52 Gun 196 | 20 84 44 48 Cannon 53 | . 4 45 4 Launcher . | . . . . Special 4 | . 4 . . Kinetic 46 | . . 8 38 Thermal 207 | 20 92 81 14 Explosive . | . . . . Electromagnetic . | . . . . Robot Hit Streak 11 | 8 11 7 10 Robot Miss Streak 5 | 3 3 5 3 Penetration Max . | . . . . Secondary Targets 1 | . 1 . . Max Gunslinging Chain 1 | . 1 . . Shots Hit Robots 148 | 12 54 46 36 Core Hits 66 | 6 24 22 14 Critical Kills 1 | . . . 1 Critical Parts Destroyed . | . . . . Critical Strikes 8 | 1 3 1 3 Burn 7 | 1 3 1 2 Smash 1 | . . . 1 Melee Attacks 12 | . . . 12 Impact 12 | . . . 12 Slashing . | . . . . Piercing . | . . . . Sneak Attacks . | . . . . Combat Hostiles . | . . . . Follow-up Attacks . | . . . . Damage Inflicted 2130 | 140 696 719 575 Guns 1391 | 140 595 227 429 Cannons 614 | . 53 492 69 Explosions . | . . . . Melee 77 | . . . 77 Ramming . | . . . . Kinetic 361 | . . 52 309 Thermal 1692 | 140 696 667 189 Explosive . | . . . . Electromagnetic . | . . . . Impact 77 | . . . 77 Slashing . | . . . . Piercing . | . . . . Highest Corruption 10 | . . . 10 Average Corruption 10 | . . . 10 Corruption Purged . | . . . . Corruption Blocked . | . . . . Overload Shots . | . . . . Overflow Damage 1 | . . 1 . Projectiles 1 | . . 1 . Explosions . | . . . . Melee . | . . . . Knockbacks 1 | . . . 1 Impact 1 | . . . 1 Kinetic . | . . . . Secondary . | . . . . Self-Inflicted Damage . | . . . . Shots . | . . . . Rammed . | . . . . Targets Rammed . | . . . . Kicked . | . . . . Crushed . | . . . . Highest Temperature 342 | 90 216 342 27 Average Temperature 71 | 39 61 94 8 Received Heat Transfer 266 | . 48 140 78 Siege Activations . | . . . . Robots Corrupted . | . . . . Combat Hostiles . | . . . . Parts Fried . | . . . . Impact Corruptions . | . . . . Robots Melted . | . . . . Combat Hostiles . | . . . . Parts Melted 8 | . 5 2 1 Heat Transferred 4696 | 446 2067 1628 555 Parts Sabotaged . | . . . . Parts Stolen . | . . . . Parts Stripped . | . . . . Power Chain Reactions . | . . . . Missiles Intercepted . | . . . . Alert | -11 -10 -10 -9 ------- Run | Scr Mat Min Mat Peak Influence 313 | 25 313 145 140 Initial 16 | . 16 . 15 Average 65 | 12 70 68 67 Maximum Alert Level 1 | . 1 . . Low Security (%) 97 | 100 96 100 100 Level 1 2 | . 3 . . Level 2 . | . . . . Level 3 . | . . . . Level 4 . | . . . . Level 5 . | . . . . High Security . | . . . . Max Security . | . . . . Squads Dispatched 5 | . 3 . 2 Investigation 2 | . 2 . . Extermination . | . . . . Reinforcement 3 | . 1 . 2 Assault . | . . . . Garrison . | . . . . Intercept . | . . . . Searches Triggered . | . . . . Construction Impeded . | . . . . Haulers Reinforced . | . . . . Active Scanning Responses . | . . . . Cargo Convoy Interrupts . | . . . . Stealth | -11 -10 -10 -9 --------- Run | Scr Mat Min Mat Distress Signals 2 | . 1 . 1 Communications Jammed . | . . . . Distress Signals . | . . . . Times Spotted 55 | . 22 19 14 Peak Tracking Total 5 | . 5 3 4 Tactical Retreats 4 | . 2 2 . Traps | -11 -10 -10 -9 ------- Run | Scr Mat Min Mat Traps Triggered 1 | . 1 . . Indirectly . | . . . . Trap Hack Attempts . | . . . . Triggered . | . . . . Disarmed . | . . . . Reprogrammed . | . . . . Reused . | . . . . Traps Extracted . | . . . . Installed . | . . . . Triggered . | . . . . Machines | -11 -10 -10 -9 ---------- Run | Scr Mat Min Mat Machines Disabled 2 | . . 1 1 Max in Single Turn 1 | . . 1 1 Machines Sabotaged . | . . . . Garrisons Compromised . | . . . . Overloaded Fab Kills . | . . . . Hacking | -11 -10 -10 -9 --------- Run | Scr Mat Min Mat Machines Accessed 14 | . 10 . 4 Terminals 10 | . 7 . 3 Fabricators . | . . . . Repair Stations 1 | . 1 . . Recycling Units 3 | . 2 . 1 Scanalyzers . | . . . . Garrison Access . | . . . . Total Hacks 42 | . 27 . 15 Successful 29 | . 19 . 10 Failed 13 | . 8 . 5 Catastrophic . | . . . . Database Lockouts . | . . . . Manual 28 | . 16 . 12 Terminals 31 | . 19 . 12 Fabricators . | . . . . Repair Stations 4 | . 4 . . Recycling Units 7 | . 4 . 3 Scanalyzers . | . . . . Garrison Access . | . . . . Terminal Hacks 9 | . 5 . 4 Robot Analysis 2 | . 1 . 1 Prototype ID Bank 2 | . 2 . . Terminal Index 2 | . 1 . 1 Recall Reinforcements 2 | . 1 . 1 Hauler Manifests 1 | . . . 1 Fabricator Hacks . | . . . . Repair Station Hacks 4 | . 4 . . Scan Component 2 | . 2 . . Repair 2 | . 2 . . Recycling Unit Hacks 2 | . 1 . 1 Retrieve Components 2 | . 1 . 1 Scanalyzer . | . . . . Garrison Access Hacks . | . . . . Unauthorized Hacks 14 | . 9 . 5 Terminals 11 | . 7 . 4 Track 1 | . . . 1 Assimilate 6 | . 5 . 1 Botnet 2 | . 1 . 1 Operators 2 | . 1 . 1 Fabricators . | . . . . Repair Stations . | . . . . Recycling Units 3 | . 2 . 1 Reject 3 | . 2 . 1 Scanalyzers . | . . . . Garrison Access . | . . . . Data Cores Recovered . | . . . . Used . | . . . . Hacking Detections 13 | . 9 . 4 Full Trace Events 1 | . 1 . . Feedback Events . | . . . . Feedback Blocked . | . . . . Robot Schematics Acquired . | . . . . Robots Built . | . . . . Authchips . | . . . . Time . | . . . . Total Robot Build Rating . | . . . . Part Schematics Acquired . | . . . . Parts Built . | . . . . Authchips . | . . . . Time . | . . . . Total Part Build Rating . | . . . . Parts Repaired 2 | . 2 . . Time 52 | . 52 . . Parts Recycled . | . . . . Recycled Matter . | . . . . Retrieved Matter . | . . . . Retrieved Components 10 | . 10 . . Parts Scanalyzed . | . . . . Part Schematics Acquired . | . . . . Parts Damaged . | . . . . Bothacking | -11 -10 -10 -9 ------------ Run | Scr Mat Min Mat Used RIF Installer . | . . . . Robots Hacked . | . . . . Non-combat . | . . . . Combat . | . . . . Robot Hacks Applied . | . . . . Relay Couplers Released . | . . . . Fabnet Peak Effective % . | . . . . Robots Rewired . | . . . . Allies Hacked . | . . . . Hacks Repelled . | . . . . Allies | -11 -10 -10 -9 -------- Run | Scr Mat Min Mat Total Allies 2 | . 2 . . Largest Group 2 | . 2 1 1 Highest-Rated Group 20 | . 20 10 10 Highest-Rated Ally 10 | . 10 10 10 Total Orders 12 | . 5 6 1 STAY 6 | . 2 3 1 FOLLOW 6 | . 3 3 . Ally Attacks . | . . . . Total Damage . | . . . . Kills . | . . . . Allies Corrupted . | . . . . Allies Melted . | . . . . Intel | -11 -10 -10 -9 ------- Run | Scr Mat Min Mat Robot Analysis Total 2 | . 1 . 1 Derelict Logs Recovered 1 | . . 1 . Drone Launches . | . . . . Drone Recoveries . | . . . . Exploration | -11 -10 -10 -9 ------------- Run | Scr Mat Min Mat Turns Passed 3867 | 248 2196 736 687 Spaces Moved 2297 | 165 1261 468 403 Core 7 | 7 . . . Treads . | . . . . Legs 132 | 132 . . . Wheels 2158 | 26 1261 468 403 Hover . | . . . . Flight . | . . . . Fastest Speed 50 | 50 80 115 100 Average Speed 108 | 117 104 115 113 Slowest Speed 190 | 190 115 115 115 Overloaded Moves . | . . . . Propulsion Burnouts . | . . . . Robots Hopped . | . . . . Cave-ins Triggered 1 | . . . 1 Exploration Rate (%) 59 | 8 99 87 43 Regions Visited 3 Branch Regions 1 Pre-discovered Areas . | . . . . Known Exits Taken . | . . . . Unknown Exits Taken 3 | 1 1 1 . Scrap Searched 1 | . . 1 . Spaces Dug 10 | . 2 . 8 Terrain Destroyed 10 | . 2 . 8 Melee 8 | . . . 8 Projectile 2 | . 2 . . AOE . | . . . . Terrain Rammed . | . . . . Walls Destroyed . | . . . . Machines Disabled . | . . . . Actions | -11 -10 -10 -9 --------- Run | Scr Mat Min Mat Total 3376 | 196 2043 577 560 Wait 832 | . 685 56 91 Move 2294 | 164 1260 467 403 Hop . | . . . . Pick Up 42 | 10 20 3 9 Fast Attach 18 | 7 6 . 5 Attach 7 | 1 2 1 3 Detach . | . . . . Swap 13 | 1 8 2 2 Drop 26 | 3 11 3 9 Fire 132 | 10 51 45 26 Melee 12 | . . . 12 Ram . | . . . . Kick . | . . . . Crush . | . . . . Escape Stasis . | . . . . Rewire . | . . . . Trap . | . . . . Miscellaneous . | . . . . Route ------- -11/Scrapyard -10/Materials (discovered 5 exits: *Mat x3 / [*Min x2]) -10/Mines -9/Materials (discovered 1 exit: [*Min]) History --------- Turn | Location | Event 35 | -11/Scrapyard | Discovered new exit (range 14) 249 | -11/Scrapyard | Entered Materials 277 | -10/Materials | Discovered new exit (range 11) 315 | -10/Materials | Build established: Mutant 427 | -10/Materials | Discovered new exit (range 9) 531 | -10/Materials | Discovered new exit (range 15) 806 | -10/Materials | Discovered new exit (range 15) 1905 | -10/Materials | Discovered new exit (range 16) 2365 | -10/Materials | Repaired Com. Wheel 2392 | -10/Materials | Repaired Com. Wheel 2445 | -10/Materials | Entered Mines 2445 | -10/Mines | Accompanied by 2 allies 2466 | -10/Mines | Assembled infested the area 2471 | -10/Mines | Assisted by a Guerilla fighting off Assembled 2734 | -10/Mines | Core integrity fell below 50% 2845 | -10/Mines | Learned Materials security intel 2992 | -10/Mines | Discovered new exit (range 15) 3079 | -10/Mines | Lost 3 parts (1p1u1w) 3162 | -10/Mines | Core integrity fell below 20% 3181 | -10/Mines | Entered Materials 3181 | -9/Materials | Accompanied by 1 ally 3181 | -9/Materials | Evolved 2 slots: Propulsion x1, Utility x1 3507 | -9/Materials | Discovered new exit (range 15) 3859 | -9/Materials | Crushed by falling debris 3859 | -9/Materials | System corruption reached 10% 3868 | -9/Materials | Self-destructed Last Messages --------------- 03810_ K-01 Serf collects debris. 03829_ U-05 Engineer builds a Wall. 03842_ The unstable cave ceiling collapses. 03851_ Connecting with Terminal... >>Trojan(Assimilate) Trojan loaded successfully. Testing... System interface override in place. 03852_ G-34 Mercenary suffers critical hit (Smash). 03852_ G-34 Mercenary destroyed. 03855_ K-01 Serf collects debris. 03859_ The unstable cave ceiling collapses. 03859_ Crushed by falling debris. 03859_ Com. Wheel destroyed. 03859_ System corrupted by crushing effect (+3). 03859_ Com. Wheel destroyed. 03859_ System corrupted by crushing effect (+4). 03859_ Heat Sink destroyed. 03859_ System corrupted by crushing effect (+3). 03859_ K-01 Serf collects debris. Map ----- +----------------------------------------------------+ | ???????????????????????????????????????????????? | | ???????????????????????????????????????????????? | | ???????????????????????????????????????????????? | | ???????????????????????????????????????????????? | | ???????????????????????????????????????????????? | | ???????????????????????????????????????????????? | | ##+##??????????????????????????????????????????? | | #??????????????????????????????????????????? | | #??????????????????????????????????????????? | | +??????????????????????????????????????????? | | #??????????????????????????????????????????? | | #??????????????????????????????????????????? | | #??????????????????????????????????????????? | | T #??????????????????????????????????????????? | | #????###########???????????????????????????? | | #????# !!= #???????????????????????????? | | ###### [ [ # ??????????"???????????????? | | % != + !""" + ????????? """ #??????????? | | ###+###### """ #?????????? """ ??????????? | | ?# #???# / """ #????????? #?????????? | | ## #???# / """ #????????? #?????????? | | "# #???# []/ """ #???????? ##????????? | | "# #???# [ ##??????? !???????? | | "# #################?????"o |]] !!??????? | | "# ## #?#########Tuk !]] !!??????? | | "# ## #??## #@guu !]] !!??????? | | "###### """ #???#######u= !!??????? | | "#????# """"" [ #?????????? !!??????? | | ####### """"" #??????????? ##########???????? | | # """"" #??????????? #????????????????? | | # """ #???????????? #????????????????? | | # #???????????? #????????????????? | | ###+#######+########??????????#????????????????? | | ### #????# +???????????????????????????? | | ###### ^ ####???????????????????????????? | | #+#########??????????????????????? | | # #??????????????????????? | | ||] """ # #??????????????????????? | | |]^] """ # """ #??????????????????????? | | |^] ^""" # """ #??????????????????????? | | ] + """ " " #??????????????????????? | | ^ ^ # "R" +??????????????????????? | | "" """ """ # """ #??????????????????????? | | "" """ """ # #??????????????????????? | | "" """ """ ####+######??????????????????????? | | #??# #???????????????????????????? | | #??# #???????????????????????????? | | ########## #??# #???????????????????????????? | | # # #?## ##??????????????????????????? | | # # #?# #??????????????????????????? | +----------------------------------------------------+ Best States ------------- Heat Dissipation 38 Energy Generation 12 Energy Capacity 265 Matter Stores 300 Matter Capacity 300 Sight Range 16 Terrain Scan Range 16 Terrain Scan Density 10 Armor Coverage 375 Evasion (%) 55 Item Schematics ----------------- None Robot Schematics ------------------ None Fabricated ------------ Nothing Alien Tech Used ----------------- None Achievements -------------- None Challenges ------------ None Game ------ Seed HybridEtherialNukerbomber Manual? 0 Play Time 00:31:16 Cumulative 195.9 hours Start 2022.03.27 @ 17:20:17 End 2022.03.27 @ 17:52:04 Sessions 1 Manual Loads 0 Difficulty Rogue Special Mode None Game No. 184 Rogue 184 Adventurer 0 Explorer 0 Win Type - Total 0 Types 0/0/0/0/0/0/0/0/0 Lore% 41 Gallery% 48 Achievement% 36 Wizard Run 0 Options --------- ASCII 0 Keyboard 0 Movement Mouse Keybinds 0 Fullscreen 1 Font 16/SmallcapsGlow Map View 75x55 Tactical HUD 1 Map Filters NONE Filters NONE Steam 1 RUN: 958a7723-3212-4537-80a1-0ec77a0ba1f7